{"text_format":"1","workbook":"xlsx","n_sheets":14,"sheets":["Cover","Info","Results","E01","E02","E03","E04","E05","E06","E07","E08","E09","E10","About"],"not_rendered":{"charts":11,"images":37,"macros":1,"external_links":0,"defined_names":15,"comments":0,"pivot_tables":0},"unopened":[],"bounds":{"document_bytes":16777216,"sheet_cells":100000,"rows_first":2000,"rows_last":500,"rows_between":2000,"halvings":0,"cell_chars":16384,"cell_head_chars":4096},"cells_cut":0,"cells_raw":0,"read":"whole","date_system":"1900"}

{"sheet":"Cover","index":0,"n_rows":0,"n_cols":0,"rows_kept":0,"cut":false,"hidden":false,"merged":[]}

{"sheet":"Info","index":1,"n_rows":39,"n_cols":4,"rows_kept":39,"cut":false,"hidden":false,"merged":[[0,0,0,16383],[38,1,38,3],[39,1,39,3],[2,1,2,2],[3,1,3,2],[4,1,4,2],[5,1,5,2],[6,1,6,2],[37,1,37,3],[31,1,31,2],[32,1,32,2],[33,1,33,2],[34,1,34,2],[35,1,35,2]]}
[]
[]
[null,"Această evaluare",null,"Răspunsul"]
[null,"Denumirea orașului"]
[null,"Tipul orașului (municipiu, zone metropolitan etc.)"]
[null,"Țara"]
[null,"Data evaluării"]
[]
[null,"Profilul orașului (obligatoriu)","Răspunsul","Sursa datează"]
[null,"Titlul autorității superioare (de ex.: primar etc.)"]
[null,"Populația totală a orașului:"]
[null,"Kilometri pătrați ai orașului:"]
[null,"Densitatea populației (per kilometru pătrat):"]
[null,"Populația tânără (15-24) (%):"]
[null,"Populația cetățenilor în vârstă (peste 65 de ani) (%):"]
[null,"Gen (gospodării conduse de femei):"]
[null,"Rata de alfabetizare (% populație alfabetizată):"]
[null,"Rata sărăciei (% populație care nu este în sărăcie):"]
[null,"Venitul mediu al gospodăriei (USD):"]
[null,"Rezidenți care nu sunt cetățeni (%):"]
[null,"Cel mai probabil risc de dezastru cunoscut:"]
[null,"Cel mai grav dezastru (cunoscut):"]
[]
[null,"Profilul orașului (opțional)","Răspunsul","Sursa datează"]
[null,"Numărul total de gospodării:"]
[null,"Persoane per unitate:"]
[null,"Costul de trai (USD):"]
[null,"PIB-ul țării pe cap de locuitor (USD)"]
[null,"Coeficientul Gini:"]
[null,"Produsul urban pe cap de locuitor (USD)"]
[]
[null,"Echipa guvernamentală locală de reducere a riscurilor de dezastre și reziliență",null,"Răspunsul"]
[null,"Numele persoanei care conduce / coordonează finalizarea evaluării Scorecard:"]
[null,"Organizație:"]
[null,"Date de contact:"]
[null,"Disponibilitatea de a împărtăși rezultatele sau de a fi folosite ca exemplu / studiu de caz de către UNDRR și parteneri:"]
[]
[null,"Informații ale părților interesate"]
[null,"Vă rugăm să enumerați mai jos toate părțile interesate care au susținut această evaluare."]

{"sheet":"Results","index":2,"n_rows":152,"n_cols":13,"rows_kept":152,"cut":false,"hidden":false,"merged":[[113,1,113,3],[96,2,96,5],[104,2,104,5],[105,2,105,5],[99,2,99,5],[111,1,111,2],[34,2,34,5],[89,2,89,5],[90,2,90,5],[91,2,91,5],[41,2,41,5],[42,2,42,5],[43,2,43,5],[52,2,52,5],[59,2,59,5],[65,2,65,5],[57,3,57,6],[39,3,39,6],[63,3,63,6],[69,3,69,6],[77,3,77,6],[73,2,73,5],[71,2,71,5],[72,2,72,5],[74,2,74,5],[94,3,94,5],[102,3,102,6],[97,2,97,5],[98,2,98,5],[79,2,79,5],[80,2,80,5],[81,2,81,5]]}
[]
[]
[]
[]
[]
[]
[]
[]
[]
[]
[]
[]
[]
[]
[]
[]
[]
[]
[]
[]
[]
[]
[]
[]
[]
[]
[]
[]
[]
[]
[]
[]
[null,"Esențialul 01: ",null,{"$f":"D118","v":"Pregătirea pentru reziliență - Integrarea sănătății publice și guvernanței"}]
[]
[null,{"$f":"C130","v":"A1.1"},{"$f":"E130","v":"Sectorul sănătății face parte din guvernanța multisectorială a gestionării riscurilor de dezastre"},null,null,null,{"$f":"F130","v":0}]
[]
[]
[]
[]
[null,"Esențialul 02: ",null,{"$f":"D119","v":"Identificarea, înțelegerea și întrebuințarea scenariilor de risc curente și viitoare - Integrarea sănătății publice și scenariilor de dezastre"}]
[]
[null,{"$f":"C131","v":"A2.1"},{"$f":"E131","v":"Includerea unei game de urgențe și dezastre (de exemplu, apariția focarelor de boli / pandemie, foamete, penurie de apă etc.) drept scenariu de dezastru propriu-zis"},null,null,null,{"$f":"F131","v":0}]
[null,{"$f":"C132","v":"A2.2"},{"$f":"E132","v":"Includerea impacturilor previzibili asupra sănătății publice din alte scenarii de risc de dezastru (de exemplu, inundații, evenimente de încălzire, cutremur)"},null,null,null,{"$f":"F132","v":0}]
[null,{"$f":"C133","v":"A2.3"},{"$f":"E133","v":"Includerea în planificarea dezastrelor a afecțiunilor cronice de sănătate preexistente, inclusiv a bolilor netransmisibile"},null,null,null,{"$f":"F133","v":0}]
[]
[]
[]
[]
[]
[]
[null,"Esențialul 03:",null,{"$f":"D120","v":"Consolidarea capacității financiare pentru reziliență - Integrarea sănătății publice și finanțelor"}]
[]
[null,{"$f":"C134","v":"A3.1"},{"$f":"E134","v":"Finanțarea pentru aspectele de reziliență din domeniul sănătății publice "},null,null,null,{"$f":"F134","v":0}]
[]
[]
[]
[]
[null,"Esențialul 04:",null,{"$f":"D121","v":"Urmărirea dezvoltării urbane reziliente - Integrarea sănătății publice și utilizării terenurilor/normelor de construcție"}]
[]
[null,{"$f":"C135","v":"A4.1"},{"$f":"E135","v":"Conformitatea facilităților cheie de sănătate cu zonarea terenurilor reziliente și normele de construcție"},null,null,null,{"$f":"F135","v":0}]
[]
[]
[]
[null,"Esențialul 05:",null,{"$f":"D122","v":"Salvgardarea amortizoarelor naturale pentru a spori funcțiile de protecție oferite de ecosistemele naturale - Gestionarea serviciilor ecosistemice care afectează sănătatea publică"}]
[]
[null,{"$f":"C136","v":"A5.1"},{"$f":"E136","v":"Păstrarea și gestionarea serviciilor ecosistemice care oferă beneficii pentru sănătatea publică"},null,null,null,{"$f":"F136","v":0}]
[]
[]
[]
[null,"Esențialul 06:",null,{"$f":"D123","v":"Consolidarea capacității instituționale pentru reziliență - Integrarea sănătății publice și capacității instituționale"}]
[]
[null,{"$f":"C137","v":"A6.1"},{"$f":"E137","v":"Disponibilitatea forței de muncă din domeniul sănătății publice care dețin competențe și abilități relevante pentru reziliența la dezastre"},null,null,null,{"$f":"F137","v":0}]
[null,{"$f":"C138","v":"A6.2"},{"$f":"E138","v":"Partajarea datelor din sistemul public de sănătate cu alte părți interesate "},null,null,null,{"$f":"F138","v":0}]
[null,{"$f":"C139","v":"A6.2.1"},{"$f":"E139","v":"Partajarea altor date cu părțile interesate din sistemul public de sănătate"},null,null,null,{"$f":"F139","v":0}]
[null,{"$f":"C140","v":"A6.2.2"},{"$f":"E140","v":"Protecția și accesul la fișe medicale individuale "},null,null,null,{"$f":"F140","v":0}]
[]
[]
[null,"Esențialul 07: ",null,{"$f":"D124","v":"Înțelegerea și consolidarea capacității sociale pentru reziliență - Integrarea sănătății publice și capacității sociale"}]
[]
[null,{"$f":"C141","v":"A7.1"},{"$f":"E141","v":"Eficacitatea sistemului de sănătate publică în implicarea comunității în contextul gestionării riscului de dezastru "},null,null,null,{"$f":"F141","v":0}]
[null,{"$f":"C142","v":"A7.1.2"},{"$f":"E142","v":"Accesul și încrederea comunității la informațiile de sănătate publică "},null,null,null,{"$f":"F142","v":0}]
[null,{"$f":"C143","v":"A7.2"},{"$f":"E143","v":"Abilitatea comunității de a „reveni la normalitate” – sănătatea mintală "},null,null,null,{"$f":"F143","v":0}]
[]
[]
[]
[]
[]
[null,"Esențialul 08:",null,{"$f":"D125","v":"Creșterea rezilienței infrastructurii - Integrarea sănătății publice și rezilienței infrastructurii"}]
[]
[null,{"$f":"C144","v":"A8.1"},{"$f":"E144","v":"Consolidarea siguranței structurale și nestructurale și funcționalității elementelor de infrastructură a sistemului de sănătate publică care nu sunt luate în considerare în Esențialul 8"},null,null,null,{"$f":"F144","v":0}]
[null,{"$f":"C145","v":"A8.2"},{"$f":"E145","v":"Capacitatea de intervenție rapidă pentru infrastructura sistemului de sănătate publică, acolo unde nu este luată în considerare în cadrul Esențialului 8"},null,null,null,{"$f":"F145","v":0}]
[null,{"$f":"C146","v":"A8.3"},{"$f":"E146","v":"Continuitatea îngrijirii celor deja bolnavi, cei ce nu sunt luați în considerare în Esențialul 8."},null,null,null,{"$f":"F146","v":0}]
[]
[]
[null,"Esențialul 09:",null,{"$f":"D126","v":"Asigurarea răspunsului eficient la dezastru - Integrarea sănătății publice și răspunsului în caz de dezastre"}]
[]
[null,{"$f":"C147","v":"A9.1"},{"$f":"E147","v":"Sisteme de avertizare timpurie pentru situații de urgență legate de sănătate "},null,null,null,{"$f":"F147","v":0}]
[null,{"$f":"C148","v":"A9.2"},{"$f":"E148","v":"Integrarea sănătății publice cu gestionarea situațiilor de urgență "},null,null,null,{"$f":"F148","v":0}]
[null,{"$f":"C149","v":"A9.3"},{"$f":"E149","v":"Luarea în considerare a populațiilor cu risc sporit sau a celor care trăiesc acasă cu afecțiuni preexistente"},null,null,null,{"$f":"F149","v":0}]
[null,{"$f":"C150","v":"A9.4"},{"$f":"E150","v":"Abilitatea de a livra materiale de sănătate publică persoanelor care au nevoie"},null,null,null,{"$f":"F150","v":0}]
[]
[]
[null,"Esențialul 10: ",null,{"$f":"D127","v":"Accelerarea recuperării și reconstruirii de o calitate mai bună - Integrarea sănătății publice și recuperarea/construirea mai bună"}]
[]
[null,{"$f":"C151","v":"A10.1"},{"$f":"E151","v":"Atenuarea consecințelor pe termen lung asupra sănătății și bunăstării publice"},null,null,null,{"$f":"F151","v":0}]
[null,{"$f":"C152","v":"A10.2"},{"$f":"E152","v":"Învățare și îmbunătățire"},null,null,null,{"$f":"F152","v":0}]
[]
[]
[]
[]
[]
[null,{"$f":"TODAY()","v":"2020-11-20"},null,null,null,null,null,{"$f":"Info!$B$4","v":"Denumirea orașului"},{"$f":"Info!$D$4","v":0},null,{"$f":"Info!$B$6","v":"Țara"},{"$f":"Info!$D$6","v":0}]
[]
[]
[]
[]
[null,null,"Label","Name",null,"Essential","TotalScore","MaxScore","Label"]
[null,null,"S1","Pregătirea pentru reziliență - Integrarea sănătății publice și guvernanței",null,"E1",{"$f":"SUMIFS($F$130:$F$189,$B$130:$B$189,F118)","v":0},{"$f":"COUNTIFS($B$130:$B$152,F118)*5","v":5},"01",null,{"$f":"SUM(G118:G127)","v":0},{"$f":"K118/K119","v":0},{"$f":"CONCATENATE(\"Punctajul total pentru această evaluare este de \",SUM(G118:G127),\" / \",SUM(H118:H127))","v":"Punctajul total pentru această evaluare este de 0 / 115"}]
[null,null,"S2","Identificarea, înțelegerea și întrebuințarea scenariilor de risc curente și viitoare - Integrarea sănătății publice și scenariilor de dezastre",null,"E2",{"$f":"SUMIFS($F$130:$F$1010,$B$130:$B$1010,F119)","v":0},15,"02",null,{"$f":"SUM(H118:H127)","v":115},{"$f":"1-L118","v":1}]
[null,null,"S3","Consolidarea capacității financiare pentru reziliență - Integrarea sănătății publice și finanțelor",null,"E3",0,5,"03"]
[null,null,"S4","Urmărirea dezvoltării urbane reziliente - Integrarea sănătății publice și utilizării terenurilor/normelor de construcție",null,"E4",0,5,"04"]
[null,null,"S5","Salvgardarea amortizoarelor naturale pentru a spori funcțiile de protecție oferite de ecosistemele naturale - Gestionarea serviciilor ecosistemice care afectează sănătatea publică",null,"E5",0,5,"05"]
[null,null,"S6","Consolidarea capacității instituționale pentru reziliență - Integrarea sănătății publice și capacității instituționale",null,"E6",0,20,"06"]
[null,null,"S7","Înțelegerea și consolidarea capacității sociale pentru reziliență - Integrarea sănătății publice și capacității sociale",null,"E7",0,15,"07"]
[null,null,"S8","Creșterea rezilienței infrastructurii - Integrarea sănătății publice și rezilienței infrastructurii",null,"E8",0,15,"08"]
[null,null,"S9","Asigurarea răspunsului eficient la dezastru - Integrarea sănătății publice și răspunsului în caz de dezastre",null,"E9",0,20,"09"]
[null,null,"S10","Accelerarea recuperării și reconstruirii de o calitate mai bună - Integrarea sănătății publice și recuperarea/construirea mai bună",null,"E10",0,10,"10"]
[]
[null,"Section","Ref",null,"Question","SelectedScore","ThisScore"]
[null,"E1",{"$f":"'E01'!$G$5","v":"A1.1"},null,{"$f":"'E01'!I5","v":"Sectorul sănătății face parte din guvernanța multisectorială a gestionării riscurilor de dezastre"},{"$f":"IF(G130=\"\",0,IF(G130=0,0,6-G130))","v":0},{"$f":"OFFSET('E01'!$E$1,MATCH(C130,'E01'!G:G,0)+3,0)","v":0}]
[null,"E2",{"$f":"'E02'!$G$5","v":"A2.1"},null,{"$f":"'E02'!I5","v":"Includerea unei game de urgențe și dezastre (de exemplu, apariția focarelor de boli / pandemie, foamete, penurie de apă etc.) drept scenariu de dezastru propriu-zis"},{"$f":"IF(G131=\"\",0,IF(G131=0,0,6-G131))","v":0},{"$f":"OFFSET('E02'!$E$1,MATCH(C131,'E02'!G:G,0)+3,0)","v":0}]
[null,"E2",{"$f":"'E02'!$G$18","v":"A2.2"},null,{"$f":"'E02'!$I$18","v":"Includerea impacturilor previzibili asupra sănătății publice din alte scenarii de risc de dezastru (de exemplu, inundații, evenimente de încălzire, cutremur)"},0,{"$f":"OFFSET('E02'!$E$1,MATCH(C132,'E02'!G:G,0)+3,0)","v":0}]
[null,"E2",{"$f":"'E02'!$G$31","v":"A2.3"},null,{"$f":"'E02'!$I$31","v":"Includerea în planificarea dezastrelor a afecțiunilor cronice de sănătate preexistente, inclusiv a bolilor netransmisibile"},0,{"$f":"OFFSET('E02'!$E$1,MATCH(C133,'E02'!G:G,0)+3,0)","v":0}]
[null,"E3",{"$f":"'E03'!$G$5","v":"A3.1"},null,{"$f":"'E03'!$I$5","v":"Finanțarea pentru aspectele de reziliență din domeniul sănătății publice "},0,{"$f":"OFFSET('E03'!$E$1,MATCH(C134,'E03'!G:G,0)+3,0)","v":0}]
[null,"E4",{"$f":"'E04'!$G$5","v":"A4.1"},null,{"$f":"'E04'!$I$5","v":"Conformitatea facilităților cheie de sănătate cu zonarea terenurilor reziliente și normele de construcție"},0,{"$f":"OFFSET('E04'!$E$1,MATCH(C135,'E04'!G:G,0)+3,0)","v":0}]
[null,"E5",{"$f":"'E05'!$G$5","v":"A5.1"},null,{"$f":"'E05'!$I$5","v":"Păstrarea și gestionarea serviciilor ecosistemice care oferă beneficii pentru sănătatea publică"},0,{"$f":"OFFSET('E05'!$E$1,MATCH(C136,'E05'!G:G,0)+3,0)","v":0}]
[null,"E6",{"$f":"'E06'!$G$5","v":"A6.1"},null,{"$f":"'E06'!$I$5","v":"Disponibilitatea forței de muncă din domeniul sănătății publice care dețin competențe și abilități relevante pentru reziliența la dezastre"},0,{"$f":"OFFSET('E06'!$E$1,MATCH(C137,'E06'!G:G,0)+3,0)","v":0}]
[null,"E6",{"$f":"'E06'!$G$18","v":"A6.2"},null,{"$f":"'E06'!$I$18","v":"Partajarea datelor din sistemul public de sănătate cu alte părți interesate "},0,{"$f":"OFFSET('E06'!$E$1,MATCH(C138,'E06'!G:G,0)+3,0)","v":0}]
[null,"E6",{"$f":"'E06'!$G$31","v":"A6.2.1"},null,{"$f":"'E06'!$I$31","v":"Partajarea altor date cu părțile interesate din sistemul public de sănătate"},0,{"$f":"OFFSET('E06'!$E$1,MATCH(C139,'E06'!G:G,0)+3,0)","v":0}]
[null,"E6",{"$f":"'E06'!$G$44","v":"A6.2.2"},null,{"$f":"'E06'!$I$44","v":"Protecția și accesul la fișe medicale individuale "},0,{"$f":"OFFSET('E06'!$E$1,MATCH(C140,'E06'!G:G,0)+3,0)","v":0}]
[null,"E7",{"$f":"'E07'!$G$5","v":"A7.1"},null,{"$f":"'E07'!$I$5","v":"Eficacitatea sistemului de sănătate publică în implicarea comunității în contextul gestionării riscului de dezastru "},0,{"$f":"OFFSET('E07'!$E$1,MATCH(C141,'E07'!G:G,0)+3,0)","v":0}]
[null,"E7",{"$f":"'E07'!$G$18","v":"A7.1.2"},null,{"$f":"'E07'!$I$18","v":"Accesul și încrederea comunității la informațiile de sănătate publică "},0,{"$f":"OFFSET('E07'!$E$1,MATCH(C142,'E07'!G:G,0)+3,0)","v":0}]
[null,"E7",{"$f":"'E07'!$G$31","v":"A7.2"},null,{"$f":"'E07'!$I$31","v":"Abilitatea comunității de a „reveni la normalitate” – sănătatea mintală "},0,{"$f":"OFFSET('E07'!$E$1,MATCH(C143,'E07'!G:G,0)+3,0)","v":0}]
[null,"E8",{"$f":"'E08'!$G$5","v":"A8.1"},null,{"$f":"'E08'!$I$5","v":"Consolidarea siguranței structurale și nestructurale și funcționalității elementelor de infrastructură a sistemului de sănătate publică care nu sunt luate în considerare în Esențialul 8"},0,{"$f":"OFFSET('E08'!$E$1,MATCH(C144,'E08'!G:G,0)+3,0)","v":0}]
[null,"E8",{"$f":"'E08'!$G$18","v":"A8.2"},null,{"$f":"'E08'!$I$18","v":"Capacitatea de intervenție rapidă pentru infrastructura sistemului de sănătate publică, acolo unde nu este luată în considerare în cadrul Esențialului 8"},{"$f":"IF(G145=\"\",0,IF(G145=0,0,6-G145))","v":0},{"$f":"OFFSET('E08'!$E$1,MATCH(C145,'E08'!G:G,0)+3,0)","v":0}]
[null,"E8",{"$f":"'E08'!$G$31","v":"A8.3"},null,{"$f":"'E08'!$I$31","v":"Continuitatea îngrijirii celor deja bolnavi, cei ce nu sunt luați în considerare în Esențialul 8."},0,{"$f":"OFFSET('E08'!$E$1,MATCH(C146,'E08'!G:G,0)+3,0)","v":0}]
[null,"E9",{"$f":"'E09'!$G$5","v":"A9.1"},null,{"$f":"'E09'!$I$5","v":"Sisteme de avertizare timpurie pentru situații de urgență legate de sănătate "},0,{"$f":"OFFSET('E09'!$E$1,MATCH(C147,'E09'!G:G,0)+3,0)","v":0}]
[null,"E9",{"$f":"'E09'!$G$18","v":"A9.2"},null,{"$f":"'E09'!$I$18","v":"Integrarea sănătății publice cu gestionarea situațiilor de urgență "},0,{"$f":"OFFSET('E09'!$E$1,MATCH(C148,'E09'!G:G,0)+3,0)","v":0}]
[null,"E9",{"$f":"'E09'!$G$31","v":"A9.3"},null,{"$f":"'E09'!$I$31","v":"Luarea în considerare a populațiilor cu risc sporit sau a celor care trăiesc acasă cu afecțiuni preexistente"},0,{"$f":"OFFSET('E09'!$E$1,MATCH(C149,'E09'!G:G,0)+3,0)","v":0}]
[null,"E9",{"$f":"'E09'!$G$44","v":"A9.4"},null,{"$f":"'E09'!$I$44","v":"Abilitatea de a livra materiale de sănătate publică persoanelor care au nevoie"},0,{"$f":"OFFSET('E09'!$E$1,MATCH(C150,'E09'!G:G,0)+3,0)","v":0}]
[null,"E10",{"$f":"'E10'!$G$5","v":"A10.1"},null,{"$f":"'E10'!$I$5","v":"Atenuarea consecințelor pe termen lung asupra sănătății și bunăstării publice"},0,{"$f":"OFFSET('E10'!$E$1,MATCH(C151,'E10'!G:G,0)+3,0)","v":0}]
[null,"E10",{"$f":"'E10'!$G$18","v":"A10.2"},null,{"$f":"'E10'!$I$18","v":"Învățare și îmbunătățire"},0,{"$f":"OFFSET('E10'!$E$1,MATCH(C152,'E10'!G:G,0)+3,0)","v":0}]

{"sheet":"E01","index":3,"n_rows":15,"n_cols":9,"rows_kept":15,"cut":false,"hidden":false,"merged":[[7,2,7,3],[8,2,13,3],[5,2,5,3],[6,2,6,3]]}
["a"]
[]
[null,"A.1 Integrarea sănătății publice și guvernanței (Esențialul 1)",null,null,null,null,"A.1",null,"Integrarea sănătății publice și guvernanței (Esențialul 1)"]
[]
[null,"A.1.1 Sectorul sănătății face parte din guvernanța multisectorială a gestionării riscurilor de dezastre",null,null,null,null,"A1.1",null,"Sectorul sănătății face parte din guvernanța multisectorială a gestionării riscurilor de dezastre"]
[null,"Întrebare","Comentarii"]
[]
[null,"Răspuns","Furnizați mijloacele de verificare (explicație și dovezi)"]
[null,null,null,null,null,{"$f":"IF(E9=1,TRUE,FALSE)","v":false}]
[null,null,null,null,null,{"$f":"IF(E9=2,TRUE,FALSE)","v":false}]
[null,null,null,null,null,{"$f":"IF(E9=3,TRUE,FALSE)","v":false}]
[null,null,null,null,null,{"$f":"IF(E9=4,TRUE,FALSE)","v":false}]
[null,null,null,null,null,{"$f":"IF(E9=5,TRUE,FALSE)","v":false}]
[null,null,null,null,null,{"$f":"IF(E9=6,TRUE,FALSE)","v":false}]
[null,"Acțiuni pentru a obține maximă reziliență","Instituția responsabilă","Intervalul de timp"]

{"sheet":"E02","index":4,"n_rows":41,"n_cols":9,"rows_kept":41,"cut":false,"hidden":false,"merged":[[5,2,5,3],[6,2,6,3],[7,2,7,3],[18,2,18,3],[19,2,19,3],[20,2,20,3],[8,2,13,3],[21,2,26,3],[34,2,39,3],[31,2,31,3],[32,2,32,3],[33,2,33,3]]}
[]
[]
[null,"A.2 Integrarea sănătății publice și a scenariilor de dezastre (Esențialul 2)",null,null,null,null,"A.2",null,"Integrarea sănătății publice și a scenariilor de dezastre (Esențialul 2)"]
[]
[null,"A2.1 Includerea unei game de urgențe și dezastre (de exemplu, apariția focarelor de boli / pandemie, foamete, penurie de apă etc.) drept scenariu de dezastru propriu-zis",null,null,null,null,"A2.1",null,"Includerea unei game de urgențe și dezastre (de exemplu, apariția focarelor de boli / pandemie, foamete, penurie de apă etc.) drept scenariu de dezastru propriu-zis"]
[null,"Întrebare","Comentarii"]
[]
[null,"Răspuns","Furnizați mijloacele de verificare (explicație și dovezi)"]
[null,null,null,null,null,{"$f":"IF(E9=1,TRUE,FALSE)","v":false}]
[null,null,null,null,null,{"$f":"IF(E9=2,TRUE,FALSE)","v":false}]
[null,null,null,null,null,{"$f":"IF(E9=3,TRUE,FALSE)","v":false}]
[null,null,null,null,null,{"$f":"IF(E9=4,TRUE,FALSE)","v":false}]
[null,null,null,null,null,{"$f":"IF(E9=5,TRUE,FALSE)","v":false}]
[null,null,null,null,null,{"$f":"IF(E9=6,TRUE,FALSE)","v":false}]
[null,"Acțiuni pentru a obține maximă reziliență","Instituția responsabilă","Intervalul de timp"]
[]
[]
[null,"A2.2 Includerea impacturilor previzibili asupra sănătății publice din alte scenarii de risc de dezastru (de exemplu, inundații, evenimente de încălzire, cutremur)",null,null,null,null,"A2.2",null,"Includerea impacturilor previzibili asupra sănătății publice din alte scenarii de risc de dezastru (de exemplu, inundații, evenimente de încălzire, cutremur)"]
[null,"Întrebare","Comentarii"]
[]
[null,"Răspuns","Furnizați mijloacele de verificare (explicație și dovezi)"]
[null,null,null,null,null,{"$f":"IF(E22=1,TRUE,FALSE)","v":false}]
[null,null,null,null,null,{"$f":"IF(E22=2,TRUE,FALSE)","v":false}]
[null,null,null,null,null,{"$f":"IF(E22=3,TRUE,FALSE)","v":false}]
[null,null,null,null,null,{"$f":"IF(E22=4,TRUE,FALSE)","v":false}]
[null,null,null,null,null,{"$f":"IF(E22=5,TRUE,FALSE)","v":false}]
[null,null,null,null,null,{"$f":"IF(E22=6,TRUE,FALSE)","v":false}]
[null,"Acțiuni pentru a obține maximă reziliență","Instituția responsabilă","Intervalul de timp"]
[]
[]
[null,"A2.3 Includerea în planificarea dezastrelor a afecțiunilor cronice de sănătate preexistente, inclusiv a bolilor netransmisibile",null,null,null,null,"A2.3",null,"Includerea în planificarea dezastrelor a afecțiunilor cronice de sănătate preexistente, inclusiv a bolilor netransmisibile"]
[null,"Întrebare","Comentarii"]
[]
[null,"Răspuns","Furnizați mijloacele de verificare (explicație și dovezi)"]
[null,null,null,null,null,{"$f":"IF(E35=1,TRUE,FALSE)","v":false}]
[null,null,null,null,null,{"$f":"IF(E35=2,TRUE,FALSE)","v":false}]
[null,null,null,null,null,{"$f":"IF(E35=3,TRUE,FALSE)","v":false}]
[null,null,null,null,null,{"$f":"IF(E35=4,TRUE,FALSE)","v":false}]
[null,null,null,null,null,{"$f":"IF(E35=5,TRUE,FALSE)","v":false}]
[null,null,null,null,null,{"$f":"IF(E35=6,TRUE,FALSE)","v":false}]
[null,"Acțiuni pentru a obține maximă reziliență","Instituția responsabilă","Intervalul de timp"]

{"sheet":"E03","index":5,"n_rows":15,"n_cols":9,"rows_kept":15,"cut":false,"hidden":false,"merged":[[4,1,4,3],[5,2,5,3],[6,2,6,3],[7,2,7,3],[8,2,13,3]]}
[]
[]
[null,"A3 Integrarea sănătății publice și finanțelor (Esențialul 3)",null,null,null,null,"A3",null,"Integrarea sănătății publice și finanțelor (Esențialul 3)"]
[]
[null,"A3.1 Finanțarea pentru aspectele de reziliență din domeniul sănătății publice ",null,null,null,null,"A3.1",null,"Finanțarea pentru aspectele de reziliență din domeniul sănătății publice "]
[null,"Întrebare","Comentarii"]
[]
[null,"Răspuns","Furnizați mijloacele de verificare (explicație și dovezi)"]
[null,null,null,null,null,{"$f":"IF(E9=1,TRUE,FALSE)","v":false}]
[null,null,null,null,null,{"$f":"IF(E9=2,TRUE,FALSE)","v":false}]
[null,null,null,null,null,{"$f":"IF(E9=3,TRUE,FALSE)","v":false}]
[null,null,null,null,null,{"$f":"IF(E9=4,TRUE,FALSE)","v":false}]
[null,null,null,null,null,{"$f":"IF(E9=5,TRUE,FALSE)","v":false}]
[null,null,null,null,null,{"$f":"IF(E9=6,TRUE,FALSE)","v":false}]
[null,"Acțiuni pentru a obține maximă reziliență","Instituția responsabilă","Intervalul de timp"]

{"sheet":"E04","index":6,"n_rows":15,"n_cols":9,"rows_kept":15,"cut":false,"hidden":false,"merged":[[4,1,4,3],[5,2,5,3],[6,2,6,3],[7,2,7,3],[8,2,13,3]]}
[]
[]
[null,"A4 Integrarea sănătății publice și utilizării terenurilor/normelor de construcție (Esențialul 4)",null,null,null,null,"A4",null,"Integrarea sănătății publice și utilizării terenurilor/normelor de construcție (Esențialul 4)"]
[]
[null,"A4.1 Conformitatea facilităților cheie de sănătate cu zonarea terenurilor reziliente și normele de construcție",null,null,null,null,"A4.1",null,"Conformitatea facilităților cheie de sănătate cu zonarea terenurilor reziliente și normele de construcție"]
[null,"Întrebare","Comentarii"]
[]
[null,"Răspuns","Furnizați mijloacele de verificare (explicație și dovezi)"]
[null,null,null,null,null,{"$f":"IF(E9=1,TRUE,FALSE)","v":false}]
[null,null,null,null,null,{"$f":"IF(E9=2,TRUE,FALSE)","v":false}]
[null,null,null,null,null,{"$f":"IF(E9=3,TRUE,FALSE)","v":false}]
[null,null,null,null,null,{"$f":"IF(E9=4,TRUE,FALSE)","v":false}]
[null,null,null,null,null,{"$f":"IF(E9=5,TRUE,FALSE)","v":false}]
[null,null,null,null,null,{"$f":"IF(E9=6,TRUE,FALSE)","v":false}]
[null,"Acțiuni pentru a obține maximă reziliență","Instituția responsabilă","Intervalul de timp"]

{"sheet":"E05","index":7,"n_rows":15,"n_cols":9,"rows_kept":15,"cut":false,"hidden":false,"merged":[[4,1,4,3],[5,2,5,3],[6,2,6,3],[7,2,7,3],[8,2,13,3]]}
[]
[]
[null,"A5 Gestionarea serviciilor ecosistemice care afectează sănătatea publică (Esențialul 5)",null,null,null,null,"A5",null,"Gestionarea serviciilor ecosistemice care afectează sănătatea publică (Esențialul 5)"]
[]
[null,"A5.1 Păstrarea și gestionarea serviciilor ecosistemice care oferă beneficii pentru sănătatea publică",null,null,null,null,"A5.1",null,"Păstrarea și gestionarea serviciilor ecosistemice care oferă beneficii pentru sănătatea publică"]
[null,"Întrebare","Comentarii"]
[]
[null,"Răspuns","Furnizați mijloacele de verificare (explicație și dovezi)"]
[null,null,null,null,null,{"$f":"IF(E9=1,TRUE,FALSE)","v":false}]
[null,null,null,null,null,{"$f":"IF(E9=2,TRUE,FALSE)","v":false}]
[null,null,null,null,null,{"$f":"IF(E9=3,TRUE,FALSE)","v":false}]
[null,null,null,null,null,{"$f":"IF(E9=4,TRUE,FALSE)","v":false}]
[null,null,null,null,null,{"$f":"IF(E9=5,TRUE,FALSE)","v":false}]
[null,null,null,null,null,{"$f":"IF(E9=6,TRUE,FALSE)","v":false}]
[null,"Acțiuni pentru a obține maximă reziliență","Instituția responsabilă","Intervalul de timp"]

{"sheet":"E06","index":8,"n_rows":54,"n_cols":9,"rows_kept":54,"cut":false,"hidden":false,"merged":[[4,1,4,3],[5,2,5,3],[6,2,6,3],[7,2,7,3],[17,1,17,3],[8,2,13,3],[18,2,18,3],[47,2,52,3],[34,2,39,3],[21,2,26,3],[19,2,19,3],[20,2,20,3],[30,1,30,3],[31,2,31,3],[32,2,32,3],[33,2,33,3],[43,1,43,3],[44,2,44,3],[45,2,45,3],[46,2,46,3]]}
[]
[]
[null,"A6 Integrarea sănătății publice și capacității instituționale (Esențialul 6)",null,null,null,null,"A6",null,"Integrarea sănătății publice și capacității instituționale (Esențialul 6)"]
[]
[null,"A6.1 Disponibilitatea forței de muncă din domeniul sănătății publice care dețin competențe și abilități relevante pentru reziliența la dezastre",null,null,null,null,"A6.1",null,"Disponibilitatea forței de muncă din domeniul sănătății publice care dețin competențe și abilități relevante pentru reziliența la dezastre"]
[null,"Întrebare","Comentarii"]
[]
[null,"Răspuns","Furnizați mijloacele de verificare (explicație și dovezi)"]
[null,null,null,null,null,{"$f":"IF(E9=1,TRUE,FALSE)","v":false}]
[null,null,null,null,null,{"$f":"IF(E9=2,TRUE,FALSE)","v":false}]
[null,null,null,null,null,{"$f":"IF(E9=3,TRUE,FALSE)","v":false}]
[null,null,null,null,null,{"$f":"IF(E9=4,TRUE,FALSE)","v":false}]
[null,null,null,null,null,{"$f":"IF(E9=5,TRUE,FALSE)","v":false}]
[null,null,null,null,null,{"$f":"IF(E9=6,TRUE,FALSE)","v":false}]
[null,"Acțiuni pentru a obține maximă reziliență","Instituția responsabilă","Intervalul de timp"]
[]
[]
[null,"A6.2 Partajarea datelor din sistemul public de sănătate cu alte părți interesate ",null,null,null,null,"A6.2",null,"Partajarea datelor din sistemul public de sănătate cu alte părți interesate "]
[null,"Întrebare","Comentarii"]
[]
[null,"Răspuns","Furnizați mijloacele de verificare (explicație și dovezi)"]
[null,null,null,null,null,{"$f":"IF(E22=1,TRUE,FALSE)","v":false}]
[null,null,null,null,null,{"$f":"IF(E22=2,TRUE,FALSE)","v":false}]
[null,null,null,null,null,{"$f":"IF(E22=3,TRUE,FALSE)","v":false}]
[null,null,null,null,null,{"$f":"IF(E22=4,TRUE,FALSE)","v":false}]
[null,null,null,null,null,{"$f":"IF(E22=5,TRUE,FALSE)","v":false}]
[null,null,null,null,null,{"$f":"IF(E22=6,TRUE,FALSE)","v":false}]
[null,"Acțiuni pentru a obține maximă reziliență","Instituția responsabilă","Intervalul de timp"]
[]
[]
[null,"A6.2.1 Partajarea altor date cu părțile interesate din sistemul public de sănătate",null,null,null,null,"A6.2.1",null,"Partajarea altor date cu părțile interesate din sistemul public de sănătate"]
[null,"Întrebare","Comentarii"]
[]
[null,"Răspuns","Furnizați mijloacele de verificare (explicație și dovezi)"]
[null,null,null,null,null,{"$f":"IF(E35=1,TRUE,FALSE)","v":false}]
[null,null,null,null,null,{"$f":"IF(E35=2,TRUE,FALSE)","v":false}]
[null,null,null,null,null,{"$f":"IF(E35=3,TRUE,FALSE)","v":false}]
[null,null,null,null,null,{"$f":"IF(E35=4,TRUE,FALSE)","v":false}]
[null,null,null,null,null,{"$f":"IF(E35=5,TRUE,FALSE)","v":false}]
[null,null,null,null,null,{"$f":"IF(E35=6,TRUE,FALSE)","v":false}]
[null,"Acțiuni pentru a obține maximă reziliență","Instituția responsabilă","Intervalul de timp"]
[]
[]
[null,"A6.2.2 Protecția și accesul la fișe medicale individuale ",null,null,null,null,"A6.2.2",null,"Protecția și accesul la fișe medicale individuale "]
[null,"Întrebare","Comentarii"]
[]
[null,"Răspuns","Furnizați mijloacele de verificare (explicație și dovezi)"]
[null,null,null,null,null,{"$f":"IF(E48=1,TRUE,FALSE)","v":false}]
[null,null,null,null,null,{"$f":"IF(E48=2,TRUE,FALSE)","v":false}]
[null,null,null,null,null,{"$f":"IF(E48=3,TRUE,FALSE)","v":false}]
[null,null,null,null,null,{"$f":"IF(E48=4,TRUE,FALSE)","v":false}]
[null,null,null,null,null,{"$f":"IF(E48=5,TRUE,FALSE)","v":false}]
[null,null,null,null,null,{"$f":"IF(E48=6,TRUE,FALSE)","v":false}]
[null,"Acțiuni pentru a obține maximă reziliență","Instituția responsabilă","Intervalul de timp"]

{"sheet":"E07","index":9,"n_rows":43,"n_cols":9,"rows_kept":43,"cut":false,"hidden":false,"merged":[[4,1,4,3],[5,2,5,3],[6,2,6,3],[7,2,7,3],[17,1,17,3],[18,2,18,3],[8,2,13,3],[21,2,26,3],[34,2,39,3],[19,2,19,3],[20,2,20,3],[30,1,30,3],[31,2,31,3],[32,2,32,3],[33,2,33,3]]}
[]
[]
[null,"A7 Integrarea sănătății publice și capacității sociale (Esențialul 7)",null,null,null,null,"A7",null,"Integrarea sănătății publice și capacității sociale (Esențialul 7)"]
[null,null,null,null,null,null,""]
[null,"A7.1 Eficacitatea sistemului de sănătate publică în implicarea comunității în contextul gestionării riscului de dezastru ",null,null,null,null,"A7.1",null,"Eficacitatea sistemului de sănătate publică în implicarea comunității în contextul gestionării riscului de dezastru "]
[null,"Întrebare","Comentarii",null,null,null,""]
[null,null,null,null,null,null,""]
[null,"Răspuns","Furnizați mijloacele de verificare (explicație și dovezi)",null,null,null,""]
[null,null,null,null,null,{"$f":"IF(E9=1,TRUE,FALSE)","v":false},""]
[null,null,null,null,null,{"$f":"IF(E9=2,TRUE,FALSE)","v":false},""]
[null,null,null,null,null,{"$f":"IF(E9=3,TRUE,FALSE)","v":false},""]
[null,null,null,null,null,{"$f":"IF(E9=4,TRUE,FALSE)","v":false},""]
[null,null,null,null,null,{"$f":"IF(E9=5,TRUE,FALSE)","v":false},""]
[null,null,null,null,null,{"$f":"IF(E9=6,TRUE,FALSE)","v":false},""]
[null,"Acțiuni pentru a obține maximă reziliență","Instituția responsabilă","Intervalul de timp",null,null,""]
[null,null,null,null,null,null,""]
[null,null,null,null,null,null,""]
[null,"A7.1.2 Accesul și încrederea comunității la informațiile de sănătate publică ",null,null,null,null,"A7.1.2",null,"Accesul și încrederea comunității la informațiile de sănătate publică "]
[null,"Întrebare","Comentarii",null,null,null,""]
[null,null,null,null,null,null,""]
[null,"Răspuns","Furnizați mijloacele de verificare (explicație și dovezi)",null,null,null,""]
[null,null,null,null,null,{"$f":"IF(E22=1,TRUE,FALSE)","v":false},""]
[null,null,null,null,null,{"$f":"IF(E22=2,TRUE,FALSE)","v":false},""]
[null,null,null,null,null,{"$f":"IF(E22=3,TRUE,FALSE)","v":false},""]
[null,null,null,null,null,{"$f":"IF(E22=4,TRUE,FALSE)","v":false},""]
[null,null,null,null,null,{"$f":"IF(E22=5,TRUE,FALSE)","v":false},""]
[null,null,null,null,null,{"$f":"IF(E22=6,TRUE,FALSE)","v":false},""]
[null,"Acțiuni pentru a obține maximă reziliență","Instituția responsabilă","Intervalul de timp",null,null,""]
[null,null,null,null,null,null,""]
[null,null,null,null,null,null,""]
[null,"A7.2 Abilitatea comunității de a „reveni la normalitate” – sănătatea mintală ",null,null,null,null,"A7.2",null,"Abilitatea comunității de a „reveni la normalitate” – sănătatea mintală "]
[null,"Întrebare","Comentarii",null,null,null,""]
[null,null,null,null,null,null,""]
[null,"Răspuns","Furnizați mijloacele de verificare (explicație și dovezi)",null,null,null,""]
[null,null,null,null,null,{"$f":"IF(E35=1,TRUE,FALSE)","v":false},""]
[null,null,null,null,null,{"$f":"IF(E35=2,TRUE,FALSE)","v":false},""]
[null,null,null,null,null,{"$f":"IF(E35=3,TRUE,FALSE)","v":false},""]
[null,null,null,null,null,{"$f":"IF(E35=4,TRUE,FALSE)","v":false},""]
[null,null,null,null,null,{"$f":"IF(E35=5,TRUE,FALSE)","v":false},""]
[null,null,null,null,null,{"$f":"IF(E35=6,TRUE,FALSE)","v":false},""]
[null,"Acțiuni pentru a obține maximă reziliență","Instituția responsabilă","Intervalul de timp",null,null,""]
[null,null,null,null,null,null,""]
[null,null,null,null,null,null,""]

{"sheet":"E08","index":10,"n_rows":43,"n_cols":9,"rows_kept":43,"cut":false,"hidden":false,"merged":[[34,2,39,3],[21,2,26,3],[8,2,13,3],[33,2,33,3],[4,1,4,3],[5,2,5,3],[6,2,6,3],[7,2,7,3],[17,1,17,3],[18,2,18,3],[19,2,19,3],[20,2,20,3],[30,1,30,3],[31,2,31,3],[32,2,32,3]]}
[]
[]
[null,"A8 Integrarea sănătății publice și rezilienței infrastructurii (Esențialul 8)",null,null,null,null,"A8",null,"Integrarea sănătății publice și rezilienței infrastructurii (Esențialul 8)"]
[null,null,null,null,null,null,""]
[null,"A8.1 Consolidarea siguranței structurale și nestructurale și funcționalității elementelor de infrastructură a sistemului de sănătate publică care nu sunt luate în considerare în Esențialul 8",null,null,null,null,"A8.1",null,"Consolidarea siguranței structurale și nestructurale și funcționalității elementelor de infrastructură a sistemului de sănătate publică care nu sunt luate în considerare în Esențialul 8"]
[null,"Întrebare","Comentarii",null,null,null,""]
[null,null,null,null,null,null,""]
[null,"Răspuns","Furnizați mijloacele de verificare (explicație și dovezi)",null,null,null,""]
[null,null,null,null,null,{"$f":"IF(E9=1,TRUE,FALSE)","v":false},""]
[null,null,null,null,null,{"$f":"IF(E9=2,TRUE,FALSE)","v":false},""]
[null,null,null,null,null,{"$f":"IF(E9=3,TRUE,FALSE)","v":false},""]
[null,null,null,null,null,{"$f":"IF(E9=4,TRUE,FALSE)","v":false},""]
[null,null,null,null,null,{"$f":"IF(E9=5,TRUE,FALSE)","v":false},""]
[null,null,null,null,null,{"$f":"IF(E9=6,TRUE,FALSE)","v":false},""]
[null,"Acțiuni pentru a obține maximă reziliență","Instituția responsabilă","Intervalul de timp",null,null,""]
[null,null,null,null,null,null,""]
[null,null,null,null,null,null,""]
[null,"A8.2 Capacitatea de intervenție rapidă pentru infrastructura sistemului de sănătate publică, acolo unde nu este luată în considerare în cadrul Esențialului 8",null,null,null,null,"A8.2",null,"Capacitatea de intervenție rapidă pentru infrastructura sistemului de sănătate publică, acolo unde nu este luată în considerare în cadrul Esențialului 8"]
[null,"Întrebare","Comentarii",null,null,null,""]
[null,null,null,null,null,null,""]
[null,"Răspuns","Furnizați mijloacele de verificare (explicație și dovezi)",null,null,null,""]
[null,null,null,null,null,{"$f":"IF(E22=1,TRUE,FALSE)","v":false},""]
[null,null,null,null,null,{"$f":"IF(E22=2,TRUE,FALSE)","v":false},""]
[null,null,null,null,null,{"$f":"IF(E22=3,TRUE,FALSE)","v":false},""]
[null,null,null,null,null,{"$f":"IF(E22=4,TRUE,FALSE)","v":false},""]
[null,null,null,null,null,{"$f":"IF(E22=5,TRUE,FALSE)","v":false},""]
[null,null,null,null,null,{"$f":"IF(E22=6,TRUE,FALSE)","v":false},""]
[null,"Acțiuni pentru a obține maximă reziliență","Instituția responsabilă","Intervalul de timp",null,null,""]
[null,null,null,null,null,null,""]
[null,null,null,null,null,null,""]
[null,"A8.3 Continuitatea îngrijirii celor deja bolnavi, cei ce nu sunt luați în considerare în Esențialul 8.",null,null,null,null,"A8.3",null,"Continuitatea îngrijirii celor deja bolnavi, cei ce nu sunt luați în considerare în Esențialul 8."]
[null,"Întrebare","Comentarii",null,null,null,""]
[null,null,null,null,null,null,""]
[null,"Răspuns","Furnizați mijloacele de verificare (explicație și dovezi)",null,null,null,""]
[null,null,null,null,null,{"$f":"IF(E35=1,TRUE,FALSE)","v":false},""]
[null,null,null,null,null,{"$f":"IF(E35=2,TRUE,FALSE)","v":false},""]
[null,null,null,null,null,{"$f":"IF(E35=3,TRUE,FALSE)","v":false},""]
[null,null,null,null,null,{"$f":"IF(E35=4,TRUE,FALSE)","v":false},""]
[null,null,null,null,null,{"$f":"IF(E35=5,TRUE,FALSE)","v":false},""]
[null,null,null,null,null,{"$f":"IF(E35=6,TRUE,FALSE)","v":false},""]
[null,"Acțiuni pentru a obține maximă reziliență","Instituția responsabilă","Intervalul de timp",null,null,""]
[null,null,null,null,null,null,""]
[null,null,null,null,null,null,""]

{"sheet":"E09","index":11,"n_rows":56,"n_cols":9,"rows_kept":56,"cut":false,"hidden":false,"merged":[[47,2,52,3],[34,2,39,3],[21,2,26,3],[30,1,30,3],[31,2,31,3],[32,2,32,3],[33,2,33,3],[43,1,43,3],[44,2,44,3],[45,2,45,3],[46,2,46,3],[19,2,19,3],[20,2,20,3],[4,1,4,3],[5,2,5,3],[6,2,6,3],[7,2,7,3],[17,1,17,3],[18,2,18,3],[8,2,13,3]]}
[]
[]
[null,"A9 Integrarea sănătății publice și răspunsului în caz de dezastre (Esențialul 9)",null,null,null,null,"A9",null,"Integrarea sănătății publice și răspunsului în caz de dezastre (Esențialul 9)"]
[null,null,null,null,null,null,""]
[null,"A9.1 Sisteme de avertizare timpurie pentru situații de urgență legate de sănătate ",null,null,null,null,"A9.1",null,"Sisteme de avertizare timpurie pentru situații de urgență legate de sănătate "]
[null,"Întrebare","Comentarii",null,null,null,""]
[null,null,null,null,null,null,""]
[null,"Răspuns","Furnizați mijloacele de verificare (explicație și dovezi)",null,null,null,""]
[null,null,null,null,null,{"$f":"IF(E9=1,TRUE,FALSE)","v":false},""]
[null,null,null,null,null,{"$f":"IF(E9=2,TRUE,FALSE)","v":false},""]
[null,null,null,null,null,{"$f":"IF(E9=3,TRUE,FALSE)","v":false},""]
[null,null,null,null,null,{"$f":"IF(E9=4,TRUE,FALSE)","v":false},""]
[null,null,null,null,null,{"$f":"IF(E9=5,TRUE,FALSE)","v":false},""]
[null,null,null,null,null,{"$f":"IF(E9=6,TRUE,FALSE)","v":false},""]
[null,"Acțiuni pentru a obține maximă reziliență","Instituția responsabilă","Intervalul de timp",null,null,""]
[null,null,null,null,null,null,""]
[null,null,null,null,null,null,""]
[null,"A9.2 Integrarea sănătății publice cu gestionarea situațiilor de urgență ",null,null,null,null,"A9.2",null,"Integrarea sănătății publice cu gestionarea situațiilor de urgență "]
[null,"Întrebare","Comentarii",null,null,null,""]
[null,null,null,null,null,null,""]
[null,"Răspuns","Furnizați mijloacele de verificare (explicație și dovezi)",null,null,null,""]
[null,null,null,null,null,{"$f":"IF(E22=1,TRUE,FALSE)","v":false},""]
[null,null,null,null,null,{"$f":"IF(E22=2,TRUE,FALSE)","v":false},""]
[null,null,null,null,null,{"$f":"IF(E22=3,TRUE,FALSE)","v":false},""]
[null,null,null,null,null,{"$f":"IF(E22=4,TRUE,FALSE)","v":false},""]
[null,null,null,null,null,{"$f":"IF(E22=5,TRUE,FALSE)","v":false},""]
[null,null,null,null,null,{"$f":"IF(E22=6,TRUE,FALSE)","v":false},""]
[null,"Acțiuni pentru a obține maximă reziliență","Instituția responsabilă","Intervalul de timp",null,null,""]
[null,null,null,null,null,null,""]
[null,null,null,null,null,null,""]
[null,"A9.3 Luarea în considerare a populațiilor cu risc sporit sau a celor care trăiesc acasă cu afecțiuni preexistente",null,null,null,null,"A9.3",null,"Luarea în considerare a populațiilor cu risc sporit sau a celor care trăiesc acasă cu afecțiuni preexistente"]
[null,"Întrebare","Comentarii",null,null,null,""]
[null,null,null,null,null,null,""]
[null,"Răspuns","Furnizați mijloacele de verificare (explicație și dovezi)",null,null,null,""]
[null,null,null,null,null,{"$f":"IF(E35=1,TRUE,FALSE)","v":false},""]
[null,null,null,null,null,{"$f":"IF(E35=2,TRUE,FALSE)","v":false},""]
[null,null,null,null,null,{"$f":"IF(E35=3,TRUE,FALSE)","v":false},""]
[null,null,null,null,null,{"$f":"IF(E35=4,TRUE,FALSE)","v":false},""]
[null,null,null,null,null,{"$f":"IF(E35=5,TRUE,FALSE)","v":false},""]
[null,null,null,null,null,{"$f":"IF(E35=6,TRUE,FALSE)","v":false},""]
[null,"Acțiuni pentru a obține maximă reziliență","Instituția responsabilă","Intervalul de timp",null,null,""]
[null,null,null,null,null,null,""]
[null,null,null,null,null,null,""]
[null,"A9.4 Abilitatea de a livra materiale de sănătate publică persoanelor care au nevoie",null,null,null,null,"A9.4",null,"Abilitatea de a livra materiale de sănătate publică persoanelor care au nevoie"]
[null,"Întrebare","Comentarii",null,null,null,""]
[null,null,null,null,null,null,""]
[null,"Răspuns","Furnizați mijloacele de verificare (explicație și dovezi)",null,null,null,""]
[null,null,null,null,null,{"$f":"IF(E48=1,TRUE,FALSE)","v":false},""]
[null,null,null,null,null,{"$f":"IF(E48=2,TRUE,FALSE)","v":false},""]
[null,null,null,null,null,{"$f":"IF(E48=3,TRUE,FALSE)","v":false},""]
[null,null,null,null,null,{"$f":"IF(E48=4,TRUE,FALSE)","v":false},""]
[null,null,null,null,null,{"$f":"IF(E48=5,TRUE,FALSE)","v":false},""]
[null,null,null,null,null,{"$f":"IF(E48=6,TRUE,FALSE)","v":false},""]
[null,"Acțiuni pentru a obține maximă reziliență","Instituția responsabilă","Intervalul de timp",null,null,""]
[null,null,null,null,null,null,""]
[null,null,null,null,null,null,""]

{"sheet":"E10","index":12,"n_rows":28,"n_cols":9,"rows_kept":28,"cut":false,"hidden":false,"merged":[[4,1,4,3],[5,2,5,3],[6,2,6,3],[7,2,7,3],[17,1,17,3],[21,2,26,3],[8,2,13,3],[19,2,19,3],[20,2,20,3],[18,2,18,3]]}
[]
[]
[null,"A10 Integrarea sănătății publice și recuperarea/construirea mai bună (Esențialul 10)",null,null,null,null,"A10",null,"Integrarea sănătății publice și recuperarea/construirea mai bună (Esențialul 10)"]
[]
[null,"A10.1 Atenuarea consecințelor pe termen lung asupra sănătății și bunăstării publice",null,null,null,null,"A10.1",null,"Atenuarea consecințelor pe termen lung asupra sănătății și bunăstării publice"]
[null,"Întrebare","Comentarii"]
[]
[null,"Răspuns","Furnizați mijloacele de verificare (explicație și dovezi)"]
[null,null,null,null,null,{"$f":"IF(E9=1,TRUE,FALSE)","v":false}]
[null,null,null,null,null,{"$f":"IF(E9=2,TRUE,FALSE)","v":false}]
[null,null,null,null,null,{"$f":"IF(E9=3,TRUE,FALSE)","v":false}]
[null,null,null,null,null,{"$f":"IF(E9=4,TRUE,FALSE)","v":false}]
[null,null,null,null,null,{"$f":"IF(E9=5,TRUE,FALSE)","v":false}]
[null,null,null,null,null,{"$f":"IF(E9=6,TRUE,FALSE)","v":false}]
[null,"Acțiuni pentru a obține maximă reziliență","Instituția responsabilă","Intervalul de timp"]
[]
[]
[null,"A10.2 Învățare și îmbunătățire",null,null,null,null,"A10.2",null,"Învățare și îmbunătățire"]
[null,"Întrebare","Comentarii"]
[]
[null,"Răspuns","Furnizați mijloacele de verificare (explicație și dovezi)"]
[null,null,null,null,null,{"$f":"IF(E22=1,TRUE,FALSE)","v":false}]
[null,null,null,null,null,{"$f":"IF(E22=2,TRUE,FALSE)","v":false}]
[null,null,null,null,null,{"$f":"IF(E22=3,TRUE,FALSE)","v":false}]
[null,null,null,null,null,{"$f":"IF(E22=4,TRUE,FALSE)","v":false}]
[null,null,null,null,null,{"$f":"IF(E22=5,TRUE,FALSE)","v":false}]
[null,null,null,null,null,{"$f":"IF(E22=6,TRUE,FALSE)","v":false}]
[null,"Acțiuni pentru a obține maximă reziliență","Instituția responsabilă","Intervalul de timp"]

{"sheet":"About","index":13,"n_rows":0,"n_cols":0,"rows_kept":0,"cut":false,"hidden":false,"merged":[]}